[Event "87th Spanish Championship 2022"]
[Site "Linares"]
[Date "2022.08.17"]
[Round "8.16"]
[White "Fernandez Garcia, Jose Luis"]
[Black "Garcia Martin, Marta"]
[Result "0-1"]
[ECO "B30"]
[WhiteElo "2362"]
[BlackElo "2305"]
[Annotator "TA"]
[PlyCount "79"]
[EventDate "2022.08.11"]
[EventType "swiss"]
[EventCountry "ESP"]
[SourceTitle "playchess.com"]
[Source "ChessBase"]
[SourceQuality "1"]
[TimeControl "5400+30"]

{[%evp 9,79,16,16,8,13,20,18,4,4,0,0,0,33,-5,46,54,22,24,186,180,167,-60,-83,-85,0,0,0,0,0,0,25,-40,-45,-53,-43,-59,-48,-55,-59,-61,-22,-26,-29,-80,-77,-76,-68,-75,-69,-56,-78,-119,-106,-141,-128,-143,-137,-233,-201,-314,-297,-655,-655,-637,-622,-619,-550,-1832,-1537,-1565,-1366,-1500]} 1. e4 {[%emt 0:04:41]} c5 {[%emt 0:00:36]} 2. Nf3 {[%emt 0:00:08]} Nc6 {[%emt 0:00:05]} 3. b4 {[%emt 0:00:15]} cxb4 {[%emt 0:01:10]} 4. d4 {[%emt 0:00:10][%cal Bd2d4,Bd4d5,Bd5d6][%mdl 32]} g6 {[%emt 0:19:09]} 5. a3 {[%emt 0:05:52]} bxa3 {[%emt 0:09:29]} 6. d5 {[%emt 0:09:37] B30: Sicilian: 2...Nc6 3 Bb5, lines without ...g6.} Bg7 $1 {[%emt 0:00:08]} (6... Qa5+ $2 7. Bd2 Nb4 8. Rxa3 $18) 7. Rxa3 {[%emt 0:00:08]} Ne5 {[%emt 0:00:56] [#]} 8. Nxe5 $146 {[%emt 0:00:07] The position is equal.} (8. Bb5 {keeps more tension.} Qc7 9. O-O a6 10. Bf4) ({Predecessor:} 8. Nd4 d6 9. f4 Nd7 10. Bb5 Ngf6 11. e5 dxe5 12. fxe5 Nxd5 13. e6 O-O 14. exd7 Bxd7 15. Bxd7 Qxd7 {0-1 (41) Sznapik,K (2215)-Bojczuk,Z (2325) Warsaw 1993}) 8... Bxe5 {[%emt 0:00:06]} 9. Nd2 {[%emt 0:00:06]} Bg7 {[%emt 0:14:46]} 10. d6 {[%emt 0:03:37]} Nh6 {[%emt 0:11:06]} 11. Nc4 {[%emt 0:06:27]} O-O {[%emt 0:00:49]} (11... e6 $11) 12. Rh3 $14 {[%emt 0:18:16]} b5 {[%emt 0:00:06]} 13. Bg5 {[%emt 0:06:35]} (13. Bxh6 Bxh6 14. Rxh6 bxc4 15. Bxc4 Bb7 $15) (13. Rxh6 bxc4 14. Bxc4 Bb7 $17) 13... f6 $2 {[%emt 0:02:53]} 14. Bxh6 $18 {[%emt 0:00:06]} Bxh6 {[%emt 0:01:05]} 15. Rxh6 $2 {[%emt 0:00:04]} (15. Qd5+ $18 Kg7 16. Qxa8) 15... bxc4 $15 {[%emt 0:00:51]} 16. Bxc4+ {[%emt 0:00:26]} Kg7 {[%emt 0:00:45]} (16... e6 $17 {...Qa5+ is the strong threat.} 17. O-O a5) 17. Qd2 {[%emt 0:00:13] Prevents Qa5.} Bb7 {[%emt 0:07:14]} 18. Rh3 {[%emt 0:02:10] Qh6+ would kill now.} h5 {[%emt 0:06:15]} 19. O-O {[%emt 0:04:07][%cal Og2g4]} ({But not} 19. Qb4 a5 $1 20. Qd2 (20. Qxb7 Rb8 $11) 20... e6 $17) 19... Rc8 {[%emt 0:01:01]} 20. Bb3 {[%emt 0:02:26]} ({White should try} 20. dxe7 $11 Qxe7 {[#]} 21. Rd3 $1) 20... e5 {[%emt 0:05:22]} 21. Qe3 {[%emt 0:14:22]} Qb6 {[%emt 0:00:46]} 22. Qxb6 {[%emt 0:01:18]} axb6 {[%emt 0:00:04]} 23. Re3 {[%emt 0:00:02]} Rc5 {[%emt 0:06:44]} 24. h4 {[%emt 0:04:33]} f5 {[%emt 0:10:00]} 25. exf5 {[%emt 0:03:04]} Rxf5 {[%emt 0:00:53]} 26. Ra1 {[%emt 0:04:45]} (26. f3 $11) 26... Bc6 $17 {[%emt 0:00:29]} 27. Rd1 {[%emt 0:01:50]} Kf6 {[%emt 0:00:34]} 28. Rdd3 {[%emt 0:05:19]} e4 {[%emt 0:00:24]} 29. Rd1 {[%emt 0:01:04]} Rf4 {[%emt 0:00:37]} 30. Rd4 {[%emt 0:02:38]} Ke5 $36 {[%emt 0:00:25][%mdl 2048] White is under strong pressure.} 31. Rb4 {[%emt 0:00:14]} b5 {[%emt 0:00:37]} 32. Rg3 {[%emt 0:00:11]} Rg4 {[%emt 0:00:30] White must now prevent ...Rxg3.} (32... Rxh4 $2 33. Rg5+ Kxd6 34. Rd4+ Bd5 35. Rxg6+ Kc7 36. Rxd5 $18) ({And not} 32... Kxd6 33. Rxg6+ Kc7 34. f3 $17) 33. Rxg4 {[%emt 0:00:59]} (33. Rh3 $17) 33... hxg4 $19 {[%emt 0:00:03]} 34. c4 {[%emt 0:00:18]} (34. Kf1 $142) 34... bxc4 {[%emt 0:00:44]} ({Not} 34... Kxd6 35. cxb5 Rxb5 36. Rxb5 Bxb5 37. Bf7 $11) 35. Rxc4 {[%emt 0:00:18]} (35. Bxc4 Kxd6 36. Ba6) 35... Rxc4 {[%emt 0:00:43] Black is clearly winning.} 36. Bxc4 {[%emt 0:00:02] KB-KB} Bd5 {[%emt 0:00:24] Prevents Bf7.} 37. Be2 {[%emt 0:01:56]} Be6 {[%emt 0:00:19]} 38. Kh2 {[%emt 0:00:28]} Kxd6 {[%emt 0:00:17]} 39. Kg3 {[%emt 0:00:34]} Ke5 {[%emt 0:00:04]} 40. f3 {Black used his chance.  Weighted Error Value: White=0.49/Black=0.17 (very precise)} 0-1

[Event "87th Spanish Championship 2022"]
[Site "Linares"]
[Date "2022.08.17"]
[Round "8.17"]
[White "Del Prado Rodriguez, Xulio"]
[Black "Ladron De Guevara Pinto, Paolo"]
[Result "1-0"]
[ECO "A50"]
[WhiteElo "2282"]
[BlackElo "2444"]
[Annotator "TA"]
[PlyCount "79"]
[EventDate "2022.08.11"]
[EventType "swiss"]
[EventCountry "ESP"]
[SourceTitle "playchess.com"]
[Source "ChessBase"]
[SourceQuality "1"]
[TimeControl "5400+30"]

{[%evp 10,79,19,18,31,24,24,25,17,16,23,15,34,34,52,9,0,0,0,0,11,0,8,20,32,23,48,0,34,34,50,33,121,125,130,109,109,116,96,80,84,54,59,9,15,0,237,199,202,217,440,440,548,537,505,320,1300,1262,1188,1179,1170,1034,874,681,4132,3170,5606,5281,29984,29985,29991,29992]} 1. d4 {[%emt 0:00:14]} Nf6 {[%emt 0:02:24]} 2. c4 {[%emt 0:00:10]} b6 {[%emt 0:00:03]} 3. Nc3 {[%emt 0:11:07]} Bb7 {[%emt 0:00:10]} 4. Qc2 {[%emt 0:00:06]} d5 {[%emt 0:00:24]} 5. cxd5 {[%emt 0:00:05]} Nxd5 {[%emt 0:00:05]} 6. e4 {[%emt 0:00:06]} Nxc3 {[%emt 0:00:35] A50: Queen's Fianchetto Defence (1 d4 Nf6 2 c4 b6).} 7. bxc3 {[%emt 0:00:08]} e6 {[%emt 0:00:37]} 8. Nf3 {[%emt 0:05:22]} Be7 {[%emt 0:00:04] White has an edge.} 9. Bb5+ {[%emt 0:12:44]} c6 {[%emt 0:00:17]} 10. Be2 {[%emt 0:00:51]} O-O {[%emt 0:00:26]} 11. O-O {[%emt 0:00:35]} c5 {[%emt 0:00:02]} 12. Bf4 {[%emt 0:03:04] [#]} (12. d5 $5) 12... cxd4 $146 {[%emt 0:01:04]} ({Predecessor (2):} 12... Nc6 13. Rad1 cxd4 14. Nxd4 Nxd4 15. Rxd4 Qe8 16. Rfd1 Qc6 17. Bf3 Rad8 18. e5 Qc8 19. Bxb7 {½-½ (18) Pinilla Munoz,S (1322)-Borodin,S (1367) LSS email 2012}) 13. cxd4 {[%emt 0:00:17]} Nc6 {[%emt 0:01:15]} 14. Rad1 {[%emt 0:00:15]} Nb4 {[%emt 0:09:19]} 15. Qb1 {[%emt 0:01:13]} f5 {[%emt 0:04:48]} 16. exf5 {[%emt 0:05:24]} Rxf5 {[%emt 0:08:34]} 17. Bg3 {[%emt 0:07:48]} Rc8 {[%emt 0:03:26]} 18. Ne5 {[%emt 0:20:28]} (18. Rc1 $14) 18... Nd5 {[%emt 0:06:45]} 19. Bg4 {[%emt 0:05:25]} Nc3 {[%emt 0:16:15][%csl LRb1,LRd1]} 20. Bxf5 {[%emt 0:01:43]} Nxb1 {[%emt 0:20:18]} (20... exf5 $14 21. Qxf5 Qd5) 21. Bxe6+ $16 {[%emt 0:00:26]} Kf8 {[%emt 0:00:05][%cal Ob1c3]} 22. Bxc8 {[%emt 0:00:32] White is more active.} Qxc8 {[%emt 0:04:46]} 23. Rxb1 {[%emt 0:00:12]} Qd8 {[%emt 0:06:08]} 24. Rbd1 {[%emt 0:07:20][%cal Od4d5]} Qd5 {[%emt 0:00:15][%csl Gb7,LRa2,LRg2][%cal Rd5g2] [#]} 25. Nf3 {[%emt 0:00:07]} a5 {[%emt 0:07:06]} 26. Rd2 {[%emt 0:07:52]} (26. Ra1 $14) 26... Bb4 {[%emt 0:02:17] A strong pair of Bishops.} 27. Rc2 {[%emt 0:01:52] Threatens to win with Rc7.} g5 $2 {[%emt 0:00:51] [#]} (27... Qf5 $11 {and Black is okay.} 28. Rc7 Bxf3 29. gxf3 Qxf3) 28. h3 $1 $18 {[%emt 0:00:01] Strongly threatening Rc7.} h5 {[%emt 0:00:16]} 29. Rc7 {[%emt 0:00:31][%cal Oa2a3] aiming for a3!} b5 $2 {[%emt 0:02:17]} (29... g4 30. hxg4 hxg4) 30. Rfc1 {[%emt 0:00:23]} g4 {[%emt 0:03:23]} 31. hxg4 {[%emt 0:00:08]} hxg4 {[%emt 0:00:02]} 32. Nh4 {[%emt 0:00:08]} Be7 $2 {[%emt 0:01:33]} (32... Qe4 33. Kh2 a4) 33. Ng6+ {[%emt 0:01:07]} Kf7 {[%emt 0:00:03]} 34. Nf4 {[%emt 0:00:06]} Qe4 {[%emt 0:00:17]} 35. Bh4 {[%emt 0:04:58]} Qxf4 {[%emt 0:00:22]} 36. Rxe7+ {[%emt 0:00:03]} Kf8 {[%emt 0:00:16]} 37. Rcc7 {[%emt 0:00:11]} g3 {[%emt 0:00:36]} 38. fxg3 {[%emt 0:00:10]} Qxd4+ {[%emt 0:00:07]} 39. Kh2 {[%emt 0:00:04]} Qd5 {[%emt 0:00:09]} 40. Rxb7 {[%emt 0:00:06] Weighted Error Value: White=0.16 (very precise) /Black=0.60} 1-0

[Event "87th Spanish Championship 2022"]
[Site "Linares"]
[Date "2022.08.17"]
[Round "8.18"]
[White "Esquivias Quintero, Luis Manuel"]
[Black "Bernabeu Lopez, Carlos Javier"]
[Result "0-1"]
[ECO "C84"]
[WhiteElo "2299"]
[BlackElo "2421"]
[Annotator "TA"]
[PlyCount "62"]
[EventDate "2022.08.11"]
[EventType "swiss"]
[EventCountry "ESP"]
[SourceTitle "playchess.com"]
[Source "ChessBase"]
[SourceQuality "1"]
[TimeControl "5400+30"]

{[%evp 15,62,18,13,10,22,10,24,12,16,-3,-5,-16,-15,-15,0,0,0,-22,-14,-20,-7,-7,-10,-15,0,0,0,0,0,-4,0,-96,-95,-96,-92,-122,-116,-122,-125,-118,-59,-59,-59,-59,-59,-722,-687,-666,-650]} 1. e4 {[%emt 0:03:52]} e5 {[%emt 0:00:06]} 2. Nf3 {[%emt 0:00:13]} Nc6 {[%emt 0:00:06]} 3. Bb5 {[%emt 0:00:04][%cal Bf1b5,Bb5a4,Ba4b3,Bb3a2,Ba2d5][%mdl 32]} a6 {[%emt 0:00:03]} 4. Ba4 {[%emt 0:00:04]} Nf6 {[%emt 0:00:05]} 5. O-O {[%emt 0:00:09]} Be7 {[%emt 0:00:03]} 6. d3 {[%emt 0:01:20]} b5 {[%emt 0:00:05]} 7. Bb3 {[%emt 0:00:02]} d6 {[%emt 0:00:06]} 8. a4 {[%emt 0:00:06]} Bd7 {[%emt 0:00:06]} 9. Bd2 {[%emt 0:04:28] C84: Closed Ruy Lopez: Unusual White 6th moves.} O-O {[%emt 0:00:14]} 10. h3 {[%emt 0:02:52] is recently more successful than 10.axb5.} h6 {[%emt 0:00:35]} 11. Nc3 {[%emt 0:00:56] White has an edge.} Na5 {[%emt 0:01:03]} 12. Ba2 {[%emt 0:00:11]} b4 {[%emt 0:06:15] [#]} 13. Nd5 $146 {[%emt 0:01:48]} ({Predecessor:} 13. Ne2 Rb8 14. Ng3 c5 15. Nh2 Qc7 16. Ng4 c4 17. dxc4 Nxc4 18. Bc1 Be6 19. Qf3 Nxg4 20. hxg4 {½-½ (31) Wojdak,J (2143)-Karolczuk,I (2328) Sypniewo 2022}) 13... Nxd5 {[%emt 0:00:40]} 14. Bxd5 {[%emt 0:05:25]} c6 {[%emt 0:02:09]} 15. Ba2 {[%emt 0:00:14]} Rb8 {[%emt 0:00:22]} 16. Qe1 {[%emt 0:05:48]} c5 {[%emt 0:01:35]} 17. Bd5 {[%emt 0:03:09]} Be6 {[%emt 0:00:26]} 18. Bxe6 {[%emt 0:02:30]} fxe6 {[%emt 0:00:05]} 19. Qe2 $1 {[%emt 0:00:56]} Rb6 {[%emt 0:12:22]} 20. Be3 {[%emt 0:02:40]} Nc6 {[%emt 0:05:18]} 21. Nd2 {[%emt 0:02:15]} Kh7 {[%emt 0:05:27]} 22. Qg4 {[%emt 0:22:49]} Rf6 {[%emt 0:00:35]} 23. h4 {[%emt 0:04:25]} (23. Qh5 $11 {keeps the balance.}) 23... Rg6 $17 {[%emt 0:01:58]} 24. Qh3 {[%emt 0:00:04]} Bxh4 {[%emt 0:00:37]} 25. Nc4 {[%emt 0:00:03]} Rb7 {[%emt 0:00:49][%cal Bb6b7,Bb7f7,Bf7f3][%mdl 32]} 26. Nxd6 {[%emt 0:00:30]} Qxd6 {[%emt 0:02:18]} 27. Qxh4 {[%emt 0:00:30] [#]} Nd4 {[%emt 0:00:24]} ({Black should try} 27... b3 $1 $17 {[%cal Rb3c2]} 28. c3 Qxd3) 28. Bxd4 $15 {[%emt 0:00:46]} Qxd4 {[%emt 0:00:11]} 29. b3 {[%emt 0:02:54] Against c4} Rf7 {[%emt 0:02:48] Threatens to win with ...Rf4.} 30. g3 {[%emt 0:11:30][%mdl 8192]} (30. Rae1 $15) 30... Rf3 $19 {[%emt 0:00:06]} 31. Kg2 {[%emt 0:02:08]} Rgf6 {[%emt 0:00:07] Weighted Error Value: White=0.45/Black=0.05 (flawless)} 0-1

[Event "87th Spanish Championship 2022"]
[Site "Linares"]
[Date "2022.08.17"]
[Round "8.19"]
[White "Luque Saiz, Andres"]
[Black "Garza Marco, Sergio"]
[Result "0-1"]
[ECO "C05"]
[WhiteElo "2289"]
[BlackElo "2408"]
[Annotator "TA"]
[PlyCount "50"]
[EventDate "2022.08.11"]
[EventType "swiss"]
[EventCountry "ESP"]
[SourceTitle "playchess.com"]
[Source "ChessBase"]
[SourceQuality "1"]
[TimeControl "5400+30"]

{[%evp 11,50,17,14,-6,-5,-4,0,0,0,-19,-18,-39,-49,-46,-24,-39,-33,-31,-16,-37,-31,-39,-34,-54,-50,-134,-129,-120,-127,-110,-118,-208,-221,-220,-200,-326,-316,-325,-331,-621,-518]} 1. e4 {[%emt 0:00:03]} e6 {[%emt 0:00:05]} 2. d4 {[%emt 0:00:11]} d5 {[%emt 0:00:05]} 3. Nd2 {[%emt 0:00:07]} Nf6 {[%emt 0:00:20]} 4. e5 {[%emt 0:00:09]} Nfd7 {[%emt 0:00:06]} 5. f4 {[%emt 0:00:16]} c5 {[%emt 0:00:06]} 6. Ngf3 {[%emt 0:00:04]} Nc6 {[%emt 0:00:06]} 7. Nb3 {[%emt 0:00:08] C05: French Tarrasch: 3...Nf6 4 e5 Nfd7, 5 f4 and 5 Bd3 sidelines.} c4 {[%emt 0:00:06]} 8. Nbd2 {[%emt 0:00:05]} Qa5 {[%emt 0:00:07]} 9. c3 {[%emt 0:11:39] The position is equal.} b5 {[%emt 0:00:05]} 10. b4 {[%emt 0:10:59]} Qb6 {[%emt 0:00:06] [#] Hoping for ...a5.} 11. Bb2 $146 {[%emt 0:13:58]} ({Predecessor:} 11. Rb1 a5 12. a3 axb4 13. axb4 Ra2 14. Be2 Qa7 15. Nf1 Nb6 16. Ne3 Be7 17. O-O {1-0 (48) Yudin,S (2494)-Sitnikov,A (2405) Cheliabinsk 2019}) 11... a5 {[%emt 0:00:08]} 12. a3 {[%emt 0:00:03]} Be7 {[%emt 0:14:27]} 13. g3 {[%emt 0:10:00]} f5 {[%emt 0:08:08]} 14. Be2 {[%emt 0:12:39]} Ra6 {[%emt 0:05:52]} 15. h4 {[%emt 0:04:28]} Qa7 {[%emt 0:02:32]} 16. Kf2 {[%emt 0:01:54]} Nb6 {[%emt 0:00:56] Prevents a4.} 17. Qc2 {[%emt 0:05:48]} Na4 {[%emt 0:01:18]} 18. Rhb1 {[%emt 0:01:16]} (18. Rab1 $15) 18... Bd7 $17 {[%emt 0:02:16]} 19. Nf1 {[%emt 0:06:11] [#]} O-O $1 {[%emt 0:04:24]} ({Much worse is} 19... axb4 $6 20. axb4 O-O 21. Bc1 $11) 20. Bc1 {[%emt 0:00:09]} Ra8 {[%emt 0:04:09][%cal Oa4c3] Strongly threatening ...Nxc3! Black is more active.} 21. Bd2 {[%emt 0:00:32]} (21. bxa5 $17 Rxa5 22. Ne3) 21... Nb6 $19 {[%emt 0:00:31] And now ...axb4 would win.} 22. bxa5 {[%emt 0:09:15]} Nxa5 {[%emt 0:00:30]} 23. Be3 {[%emt 0:01:39]} (23. Be1 $142) 23... Nb3 {[%emt 0:00:26]} 24. Ra2 {[%emt 0:00:03]} Rxa3 {[%emt 0:00:11]} 25. Rab2 {[%emt 0:00:04] [#]} (25. Rxa3 Qxa3 26. N1d2) 25... Na4 {[%emt 0:03:17] Weighted Error Value: White=0.45/Black=0.02 (flawless)} 0-1

[Event "87th Spanish Championship 2022"]
[Site "Linares"]
[Date "2022.08.17"]
[Round "8.22"]
[White "Lopez Varela, Pablo"]
[Black "Gomez Dieguez, David"]
[Result "1-0"]
[ECO "C58"]
[WhiteElo "2158"]
[BlackElo "2372"]
[Annotator "TA"]
[PlyCount "119"]
[EventDate "2022.08.11"]
[EventType "swiss"]
[EventCountry "ESP"]
[SourceTitle "playchess.com"]
[Source "ChessBase"]
[SourceQuality "1"]
[TimeControl "5400+30"]

{[%evp 14,119,34,36,35,33,22,29,14,16,16,29,18,18,23,0,0,0,0,0,7,0,159,191,197,191,320,310,430,406,628,617,607,614,590,578,593,575,633,531,585,582,539,399,570,377,349,358,364,368,368,358,417,408,414,408,433,421,428,429,444,410,463,448,754,713,911,740,5614,5614,5606,5558,5543,4579,5543,5462,29963,29966,29965,29967,29969,29970,29966,29963,29975,29976,29976,29977,29977,29978,29978,29979,29979,29980,29980,29981,29981,29982,29982,29983,29983,29984,29984,29985,29985,29986,29986,29987]} 1. e4 {[%emt 0:00:02]} e5 {[%emt 0:00:04]} 2. Nf3 {[%emt 0:00:04]} Nc6 {[%emt 0:00:03]} 3. Bc4 {[%emt 0:00:04]} Nf6 {[%emt 0:00:04]} 4. Ng5 {[%emt 0:00:03]} d5 {[%emt 0:00:06]} 5. exd5 {[%emt 0:00:04]} Na5 {[%emt 0:00:03]} 6. Bb5+ {[%emt 0:00:03]} c6 {[%emt 0:00:03]} 7. dxc6 {[%emt 0:00:03]} bxc6 {[%emt 0:00:02]} 8. Bd3 {[%emt 0:00:04]} Nd5 {[%emt 0:00:04] C58: Two Knights: 4 Ng5 d5 5 exd5 Na5 sidelines.} 9. Nf3 {[%emt 0:00:03]} (9. Qh5 g6 10. Nxf7 gxh5 $17) (9. h4 {keeps more tension.} Nf4 10. Bf1 Bc5 11. d3) 9... Bd6 {[%emt 0:00:34]} 10. O-O {[%emt 0:00:08]} O-O {[%emt 0:00:37] White has an edge.} 11. Re1 {[%emt 0:00:02]} f5 {[%emt 0:04:02]} 12. Nxe5 {[%emt 0:00:54]} Qf6 $1 {[%emt 0:03:33]} (12... Qh4 13. Bf1 $18) 13. Nf3 {[%emt 0:00:02]} g5 $1 {[%emt 0:03:09]} 14. c4 $1 {[%emt 0:00:03][%cal Bc2c4,Bc4c5][%mdl 32] 14.c4 scores better than 14.g3.} (14. g3 $5 {[%cal Rb1c3]}) 14... Nf4 {[%emt 0:05:57]} 15. Bf1 {[%emt 0:00:59] Threatens to win with d4.} g4 {[%emt 0:03:36]} 16. d4 {[%emt 0:00:11] Strongly threatening Ne5.} gxf3 {[%emt 0:01:34]} 17. Qxf3 {[%emt 0:00:10]} Ng6 {[%emt 0:08:34] White leaves nothing to chance now.} ({Don't do} 17... Qxd4 18. Rd1 Nh3+ 19. gxh3 $16) ({Black should try} 17... Ne6 $1 $11) 18. c5 $16 {[%emt 0:06:38][%mdl 1024] White has strong compensation.} Bc7 {[%emt 0:03:37]} 19. b4 $1 {[%emt 0:11:21]} Nb7 {[%emt 0:00:09]} ({Less strong is} 19... Qxd4 20. bxa5 $1 Rb8 21. Bd2 $1 (21. Qc3 Qxc3 22. Nxc3 Bxa5 $17) 21... Rxb1 22. Raxb1 $16 (22. Rexb1 Qxd2 23. Qxc6 Be5 $11)) (19... Be6 $142) 20. Qb3+ $18 {[%emt 0:01:11] [#]} Kh8 $146 {[%emt 0:01:16]} ({Predecessor:} 20... Kg7 21. Bb2 f4 22. d5 Be5 23. Rxe5 Nxe5 24. Nd2 Bf5 25. Re1 Rae8 26. Rxe5 Rxe5 {1-0 (36) Vazquez,G (2536)-Gauri,S (2373) Charlotte 2022}) 21. Bb2 {[%emt 0:00:41]} Nd8 {[%emt 0:00:32]} (21... Rb8 $142 22. d5 Be5 23. Bxe5 Nxe5) 22. d5 {[%emt 0:04:42][%cal Bd4d5,Bd5c6,Bc6c7][%mdl 32]} Be5 {[%emt 0:04:26] [#]} 23. Rxe5 {[%emt 0:00:46][%mdl 576] Remove Defender, Deflection} Nxe5 {[%emt 0:00:01]} 24. f4 {[%emt 0:00:13]} Kg8 {[%emt 0:04:01]} 25. fxe5 {[%emt 0:04:42]} Qg5 {[%emt 0:00:44]} 26. Bc4 {[%emt 0:07:33]} Re8 {[%emt 0:06:31]} 27. dxc6+ {[%emt 0:00:49]} Kf8 {[%emt 0:00:04]} 28. c7 {[%emt 0:13:22]} Bb7 {[%emt 0:01:04]} (28... Ne6 $142 29. Bd5 Nxc7) 29. Qg3 {[%emt 0:10:22]} Qxg3 {[%emt 0:02:02]} 30. hxg3 {[%emt 0:00:07] The board is on fire.} Ne6 {[%emt 0:15:21]} 31. Bxe6 {[%emt 0:01:31]} Rxe6 {[%emt 0:00:07]} 32. b5 {[%emt 0:03:35]} Rc8 {[%emt 0:05:16]} 33. c6 {[%emt 0:00:50]} Bxc6 {[%emt 0:00:04]} 34. bxc6 {[%emt 0:00:02] Hoping for Ba3+.} Rxc6 {[%emt 0:00:05]} 35. Nc3 {[%emt 0:02:13]} R8xc7 {[%emt 0:00:01]} 36. Nd5 {[%emt 0:01:12]} Rd7 {[%emt 0:01:20]} 37. Nf4 {[%emt 0:00:25]} Ra6 {[%emt 0:07:06]} 38. e6 {[%emt 0:02:19]} Rd2 {[%emt 0:00:47]} (38... Rd8 $142 39. Rc1 Ke7) 39. Bf6 {[%emt 0:02:09]} Rad6 {[%emt 0:01:09]} 40. Kh2 {[%emt 0:01:15]} Rd1 {[%emt 0:00:10]} 41. Rxd1 {[%emt 0:00:20]} Rxd1 {[%emt 0:00:01]} 42. e7+ {[%emt 0:00:15]} Kf7 {[%emt 0:00:32] [#]} 43. Ne6 $1 {[%emt 0:00:05][%mdl 512]} Re1 {[%emt 0:02:22] [#]} 44. Nc7 $1 {[%emt 0:00:41]} Kxf6 {[%emt 0:00:04]} (44... Re2 45. e8=Q+) 45. e8=Q {[%emt 0:00:05] White mates.} Rxe8 {[%emt 0:00:05]} 46. Nxe8+ {[%emt 0:00:10] KN-K3P} Ke5 {[%emt 0:00:22]} 47. Kh3 {[%emt 0:06:13]} Kd4 {[%emt 0:00:55]} 48. Nd6 {[%emt 0:01:28]} a5 {[%emt 0:01:05]} 49. a4 {[%emt 0:00:49]} Kc5 {[%emt 0:00:04]} 50. Nxf5 {[%emt 0:00:29] KN-KPP} Kb4 {[%emt 0:00:01]} 51. Nd4 {[%emt 0:00:23]} Kxa4 {[%emt 0:00:01] [#]} 52. Nc6 $1 {[%emt 0:00:17]} Kb5 {[%emt 0:00:01] [#]} 53. Nxa5 $1 {[%emt 0:00:05] KN-KP} Kc5 {[%emt 0:01:03]} (53... Kb6 54. Kh4) 54. Kh4 {[%emt 0:00:25]} Kd5 {[%emt 0:00:05]} 55. Kh5 {[%emt 0:00:29]} Ke6 {[%emt 0:00:06]} 56. g4 {[%emt 0:00:16][%cal Bg3g4,Bg4g5][%mdl 32]} Ke5 {[%emt 0:00:14]} 57. Kh6 {[%emt 0:00:14]} Kf4 {[%emt 0:00:04]} 58. g5 {[%emt 0:00:04]} Kg4 {[%emt 0:00:35]} 59. Nc4 {[%emt 0:00:35]} Kf5 {[%emt 0:00:04] [#]} 60. Ne5 $1 {[%emt 0:00:11] Weighted Error Value: White=0.14 (very precise) /Black=0.37} 1-0